bitfinex/quotes_BTCUSD_20241116
["timestamp","ask_amount","ask_price","bid_price","bid_amount"]
[1731776532238,0.110422,90561.0,90560.0,0.005]
[1731776532455,0.110424,90560.0,90559.0,0.005]
[1731776532656,0.4804505,90560.0,90559.0,0.005]
[1731776532899,0.3653594,90560.0,90559.0,0.005]
[1731776533140,0.220852,90559.0,90549.0,0.005]
[1731776533281,0.220876,90549.0,90545.0,0.005]
[1731776533497,0.23666896,90546.0,90545.0,0.005]
[1731776534005,0.12622796,90546.0,90540.0,0.005]
[1731776534224,0.110448,90540.0,90536.0,0.0058569]
[1731776534661,0.110448,90540.0,90536.0,0.0008569]
[1731776534662,0.11648235,90540.0,90536.0,0.0008569]
[1731776534865,0.11648235,90540.0,90536.0,0.0058569]
[1731776535506,0.26498854,90540.0,90536.0,0.0058569]
[1731776535716,0.48195142,90540.0,90536.0,0.0058569]
[1731776535963,0.2255449,90540.0,90536.0,0.0058569]
[1731776536579,0.59101218,90540.0,90536.0,0.0058569]
[1731776537331,0.26360037,90540.0,90536.0,0.0058569]
[1731776537558,0.10906255,90540.0,90536.0,0.0058569]
[1731776537761,0.22553838,90540.0,90536.0,0.0058569]
[1731776540328,0.59095997,90540.0,90536.0,0.0058569]
[1731776541159,0.78895813,90540.0,90536.0,0.0058569]
[1731776541595,0.59095997,90540.0,90536.0,0.0058569]
[1731776541810,0.22553838,90540.0,90536.0,0.0058569]
[1731776542295,0.21951055,90540.0,90536.0,0.0058569]
[1731776542525,0.22553838,90540.0,90536.0,0.0058569]
[1731776542734,0.22122475,90540.0,90536.0,0.0058569]
[1731776542943,0.22725258,90540.0,90536.0,0.0058569]
[1731776543173,0.5865913,90540.0,90536.0,0.0058569]
[1731776543417,0.22725258,90540.0,90536.0,0.0058569]
[1731776543625,0.22122475,90540.0,90536.0,0.0058569]
[1731776543830,0.5865773,90540.0,90536.0,0.0058569]
[1731776544037,0.59259854,90540.0,90536.0,0.0058569]
[1731776544453,0.5865773,90540.0,90536.0,0.0058569]
[1731776544681,0.59259747,90540.0,90536.0,0.0058569]
[1731776544899,0.5865773,90540.0,90536.0,0.0058569]
[1731776545144,0.59759748,90540.0,90536.0,0.0008569]
[1731776545352,0.79559564,90540.0,90536.0,0.0008569]
[1731776545561,0.59759748,90540.0,90536.0,0.0008569]
[1731776545810,0.84509518,90540.0,90536.0,0.0008569]
[1731776546279,0.94509518,90540.0,90536.0,0.0008569]
[1731776546708,0.69759748,90540.0,90536.0,0.0008569]
[1731776547136,0.94498467,90540.0,90536.0,0.0008569]
[1731776547372,0.12622796,90534.0,90528.0,0.005]
[1731776547614,0.20940294,90530.0,90528.0,0.005]
[1731776547871,0.10906255,90530.0,90528.0,0.005]
[1731776549194,0.21952355,90530.0,90528.0,0.005]
[1731776549433,0.10906255,90530.0,90528.0,0.005]
[1731776549895,0.21952255,90530.0,90528.0,0.005]
[1731776550321,0.21952255,90530.0,90529.0,0.005]
[1731776551970,0.10906255,90530.0,90529.0,0.005]
[1731776552149,0.04414529,90531.0,90529.0,0.005]
[1731776552150,0.15460429,90531.0,90529.0,0.005]
[1731776552389,0.09890786,90537.0,90536.0,0.005]
[1731776552592,0.150076,90540.0,90530.0,0.22092]
[1731776552593,0.09890786,90539.0,90537.0,0.115451]
[1731776552813,0.11045,90538.0,90537.0,0.005]
[1731776553890,0.04636191,90540.0,90537.0,0.005]
[1731776554392,0.0017142,90540.0,90537.0,0.005]
[1731776554607,0.0017142,90540.0,90537.0,0.115451]
[1731776554889,0.0017142,90540.0,90539.0,0.115449]
[1731776557168,0.0017142,90540.0,90539.0,0.12265782]
[1731776557994,0.0017142,90540.0,90539.0,0.120449]
[1731776558169,0.0017142,90540.0,90539.0,0.115449]
[1731776561690,0.0017142,90540.0,90539.0,0.14784917]
[1731776561912,0.0017142,90540.0,90539.0,0.14718872]
[1731776564063,0.0017142,90540.0,90539.0,0.26846006]
[1731776564269,0.0017142,90540.0,90539.0,0.26625127]
[1731776564483,0.0017142,90540.0,90539.0,0.26125068]
[1731776564898,0.0017142,90540.0,90539.0,0.25159026]
[1731776565114,0.0017142,90540.0,90539.0,0.22951155]
[1731776565317,0.0017142,90540.0,90539.0,0.25021048]
[1731776565533,0.0017142,90540.0,90539.0,0.26400924]
[1731776565741,0.0017142,90540.0,90539.0,0.27504867]
[1731776565974,0.0017142,90540.0,90539.0,0.26124991]
[1731776566402,0.0017142,90540.0,90539.0,0.15218736]
[1731776567243,0.09027255,90557.0,90556.0,0.005]
[1731776567442,0.09027255,90557.0,90556.0,0.02293907]
[1731776567644,0.09027255,90557.0,90556.0,0.0229393]
[1731776567890,0.23665196,90560.0,90556.0,0.0229393]
[1731776568100,0.23665196,90560.0,90559.0,0.005]
[1731776568527,0.23665196,90560.0,90559.0,0.02293941]
[1731776569593,0.23665196,90560.0,90559.0,0.01189977]
[1731776570000,0.44462035,90560.0,90559.0,0.00689977]
[1731776570243,0.34571451,90560.0,90559.0,0.00689977]
[1731776570465,0.49407327,90560.0,90559.0,0.00689977]
[1731776570687,0.110432,90553.0,90552.0,0.005]
[1731776570959,0.23665996,90553.0,90552.0,0.005]
[1731776571165,0.23665996,90553.0,90552.0,0.01190011]
[1731776573364,0.23665996,90553.0,90552.0,0.00690011]
[1731776573573,0.23665996,90553.0,90552.0,0.01190011]
[1731776574220,0.23665996,90553.0,90552.0,0.00690011]
[1731776574425,0.23665996,90553.0,90552.0,0.01190011]
[1731776574636,0.23665996,90553.0,90552.0,0.00690011]
[1731776574843,0.110433,90552.0,90551.0,0.005]
[1731776575087,0.331301,90552.0,90551.0,0.005]
[1731776575306,0.331301,90552.0,90551.0,0.01190015]
[1731776575967,0.13225295,90553.0,90551.0,0.01190015]
[1731776576176,0.110433,90552.0,90551.0,0.005]
[1731776576404,0.110433,90552.0,90551.0,0.01190015]
[1731776577316,0.11645799,90552.0,90551.0,0.01190015]
[1731776577501,0.26483396,90552.0,90551.0,0.01190015]
[1731776578136,0.37401493,90552.0,90551.0,0.01190015]
[1731776578340,0.59596028,90552.0,90551.0,0.00690015]
[1731776578470,0.110448,90540.0,90539.0,0.0008569]
[1731776578694,0.110448,90540.0,90539.0,0.02070112]
[1731776578695,0.23667596,90540.0,90539.0,0.02070112]
[1731776578906,0.23667596,90540.0,90539.0,0.01794097]
[1731776579597,0.2427054,90540.0,90539.0,0.00690037]
[1731776580025,0.39123323,90540.0,90539.0,0.00690037]
[1731776580513,0.38520379,90540.0,90539.0,0.00690037]
[1731776580737,0.27475579,90540.0,90528.0,0.0008572]
[1731776580969,0.09902262,90535.0,90529.0,0.2278245]
[1731776581170,0.09902262,90535.0,90530.0,0.11046]
[1731776581385,0.20947562,90536.0,90530.0,0.0069015]
[1731776581594,0.20947562,90536.0,90531.0,0.0069015]
[1731776581595,0.110454,90535.0,90531.0,0.0069015]
[1731776581753,0.110454,90535.0,90532.0,0.0069015]
[1731776581754,0.20947662,90535.0,90532.0,0.0069015]
[1731776581958,0.20947662,90535.0,90533.0,0.0069015]
[1731776582158,0.09902262,90536.0,90534.0,0.0069015]
[1731776582376,0.220912,90534.0,90528.0,0.0008572]
[1731776582605,0.331368,90534.0,90529.0,0.00690156]
[1731776582817,0.331368,90534.0,90530.0,0.00690156]
[1731776582818,0.110457,90533.0,90530.0,0.00690156]
[1731776583021,0.09902087,90536.0,90531.0,0.00690156]
[1731776583236,0.20947387,90536.0,90532.0,0.00690156]
[1731776583561,0.20947387,90536.0,90528.0,0.0008572]
[1731776583562,0.110454,90535.0,90533.0,0.00690156]
[1731776583771,0.110454,90535.0,90534.0,0.00690156]
[1731776584317,0.110457,90533.0,90528.0,0.0008572]
[1731776584655,0.31992987,90535.0,90528.0,0.0008572]
[1731776584656,0.20947587,90535.0,90529.0,0.00690154]
[1731776584856,0.20947587,90535.0,90528.0,0.0008572]
[1731776584857,0.110455,90535.0,90530.0,0.00690154]
[1731776585065,0.110456,90534.0,90531.0,0.00690154]
[1731776585317,0.09902087,90536.0,90528.0,0.0008572]
[1731776585318,0.20947387,90536.0,90532.0,0.00690154]
[1731776585502,0.20947387,90536.0,90533.0,0.00690154]
[1731776585851,0.09902087,90536.0,90528.0,0.0008572]
[1731776586052,0.110455,90535.0,90529.0,0.00690148]
[1731776586254,0.09902087,90536.0,90530.0,0.00690148]
[1731776586255,0.110456,90534.0,90530.0,0.00690148]
[1731776586505,0.110456,90534.0,90531.0,0.00690148]
[1731776586732,0.220909,90535.0,90532.0,0.00690148]
[1731776586963,0.220911,90534.0,90528.0,0.0008572]
[1731776587193,0.110461,90529.0,90528.0,0.0008572]
[1731776588599,0.20948161,90529.0,90528.0,0.0008572]
[1731776588834,0.110461,90529.0,90528.0,0.0008572]
[1731776589054,0.25898679,90529.0,90528.0,0.0008572]
[1731776589285,0.78309191,90529.0,90528.0,0.0008572]
[1731776589512,0.58505753,90529.0,90528.0,0.0008572]
[1731776589747,0.63024976,90529.0,90528.0,0.0008572]
[1731776590209,0.82828414,90529.0,90528.0,0.0008572]
[1731776590412,0.83430845,90529.0,90528.0,0.0008572]
[1731776591538,1.43938577,90529.0,90528.0,0.0008572]
[1731776591783,1.30526806,90529.0,90528.0,0.0008572]
[1731776592423,1.31026806,90529.0,90528.0,0.0008572]
[1731776592854,0.215466,90525.0,90524.0,0.0017138]
[1731776593063,0.33055286,90525.0,90524.0,0.0017138]
[1731776593270,0.66844764,90525.0,90524.0,0.0017138]
[1731776593481,0.005,90521.0,90509.0,0.16555835]
[1731776593684,0.12622796,90510.0,90502.0,0.0008573]
[1731776593914,0.110488,90507.0,90502.0,0.1113503]
[1731776594387,0.22698894,90509.0,90502.0,0.0008573]
[1731776594632,0.110488,90508.0,90503.0,0.110493]
[1731776595270,0.12622796,90510.0,90504.0,0.220984]
[1731776595483,0.12622796,90510.0,90508.0,0.110486]
[1731776595657,0.12622796,90510.0,90506.0,0.110489]
[1731776596280,0.12622796,90510.0,90502.0,0.0008573]
[1731776596500,0.00601483,90514.0,90502.0,0.0008573]
[1731776596736,0.05068068,90519.0,90512.0,0.220964]
[1731776596960,0.05068068,90519.0,90502.0,0.0008573]
[1731776596961,0.16555835,90516.0,90503.0,0.10906255]
[1731776597166,0.61649452,90526.0,90523.0,0.110468]
[1731776597397,0.72695952,90526.0,90520.0,0.110471]
[1731776597621,0.61649452,90526.0,90522.0,0.11047]
[1731776598072,0.45093617,90526.0,90522.0,0.11047]
[1731776598295,0.45093617,90526.0,90519.0,0.220946]
[1731776598296,0.49602382,90526.0,90519.0,0.220946]
[1731776598499,0.49602382,90526.0,90503.0,0.005]
[1731776598718,0.04508765,90526.0,90525.0,0.110466]
[1731776598944,0.17055835,90540.0,90505.0,0.220982]
[1731776598945,0.09891042,90531.0,90524.0,0.220933]
[1731776599243,0.14323973,90532.0,90530.0,0.11046]
[1731776599439,0.110452,90537.0,90531.0,0.110459]
[1731776599676,0.02232124,90534.0,90532.0,0.110457]
[1731776600130,0.02232124,90534.0,90529.0,0.331383]
[1731776600344,0.02232124,90534.0,90529.0,0.11046]
[1731776600550,0.02232124,90534.0,90524.0,0.220934]
[1731776600551,0.04487675,90537.0,90515.0,0.220957]
[1731776600769,0.04487675,90537.0,90536.0,0.110453]
[1731776601003,0.16555835,90539.0,90534.0,0.22091]
[1731776601004,0.18726097,90539.0,90534.0,0.22091]
[1731776601425,0.02170262,90539.0,90534.0,0.22091]
[1731776601644,0.02170262,90539.0,90538.0,0.11045]
[1731776602120,0.09891042,90543.0,90520.0,0.005]
[1731776602328,0.17040022,90547.0,90521.0,0.11596385]
[1731776602541,0.16555835,90539.0,90538.0,0.11045]
[1731776604467,0.0017142,90540.0,90539.0,0.110449]
[1731776607538,0.0017142,90540.0,90534.0,0.220911]
[1731776607780,0.0017142,90540.0,90537.0,0.110451]
[1731776607978,0.0017142,90540.0,90538.0,0.11045]
[1731776609070,0.0017142,90540.0,90534.0,0.220911]
[1731776609284,0.0017142,90540.0,90539.0,0.110449]
[1731776609951,0.0077386,90540.0,90539.0,0.110449]
[1731776610161,0.0017142,90540.0,90537.0,0.110451]
[1731776610389,0.0017142,90540.0,90533.0,0.220913]
[1731776610390,0.0017142,90540.0,90534.0,0.220911]
[1731776610597,0.0017142,90540.0,90538.0,0.11045]
[1731776610847,0.0017142,90540.0,90538.0,0.110449]
[1731776611070,0.0017142,90540.0,90534.0,0.220911]
[1731776611071,0.0077386,90540.0,90539.0,0.110449]
[1731776611302,0.0017142,90540.0,90534.0,0.220911]
[1731776611531,0.0060244,90539.0,90537.0,0.110451]
[1731776611781,0.0060244,90538.0,90535.0,0.220907]
[1731776612012,0.0060244,90539.0,90535.0,0.220907]
[1731776612261,0.00602407,90538.0,90535.0,0.220907]
[1731776612486,0.20934235,90544.0,90538.0,0.11045]
[1731776612701,0.110444,90544.0,90538.0,0.11045]
[1731776612907,0.09889835,90544.0,90535.0,0.220907]
[1731776613128,0.110447,90541.0,90535.0,0.110453]
[1731776613349,0.20934235,90544.0,90528.0,0.0008571]
[1731776613582,0.110444,90543.0,90537.0,0.11045]
[1731776614425,0.09889835,90540.0,90537.0,0.11045]
[1731776614710,0.09889835,90540.0,90535.0,0.220907]
[1731776614711,0.0017144,90540.0,90538.0,0.11045]
[1731776615855,0.0017144,90540.0,90529.0,0.220923]
[1731776616073,0.1121624,90540.0,90534.0,0.110454]
[1731776616275,0.1121624,90540.0,90535.0,0.110453]
[1731776616276,0.0017144,90540.0,90535.0,0.110453]
[1731776616726,0.0017144,90540.0,90528.0,0.0008571]
[1731776616727,0.16727275,90540.0,90528.0,0.0008571]
[1731776616991,0.12622796,90533.0,90528.0,0.0008571]
[1731776617439,0.12622796,90533.0,90529.0,0.11046]
[1731776617647,0.22512631,90533.0,90529.0,0.11046]
[1731776617864,0.12622796,90533.0,90529.0,0.11046]
[1731776618318,0.12622796,90533.0,90530.0,0.110459]
[1731776618582,0.22519322,90533.0,90530.0,0.110459]
[1731776618791,0.12622796,90533.0,90528.0,0.0008571]
[1731776618996,0.42054392,90540.0,90528.0,0.0008571]
[1731776618997,0.09896526,90536.0,90528.0,0.0008571]
[1731776619199,0.09896526,90537.0,90533.0,0.110456]
[1731776619629,0.09896526,90536.0,90530.0,0.220921]
[1731776619869,0.09896526,90536.0,90529.0,0.220923]
[1731776620081,0.09896526,90537.0,90532.0,0.110458]
[1731776620252,0.20941575,90538.0,90532.0,0.110458]
[1731776620460,0.09896475,90537.0,90532.0,0.110458]
[1731776620670,0.09896475,90536.0,90532.0,0.110458]
[1731776621467,0.09896475,90536.0,90533.0,0.110456]
[1731776621816,0.09896475,90537.0,90533.0,0.110456]
[1731776622019,0.09896475,90537.0,90528.0,0.0008571]
[1731776622316,0.09896475,90535.0,90530.0,0.220919]
[1731776622491,0.09896475,90534.0,90533.0,0.110456]
[1731776623143,0.09896475,90534.0,90530.0,0.220919]
[1731776623144,0.14844712,90536.0,90534.0,0.110455]
[1731776623360,0.14845703,90535.0,90534.0,0.110455]
[1731776623783,0.14845703,90536.0,90534.0,0.110455]
[1731776624224,0.00599166,90535.0,90534.0,0.110455]
[1731776624418,0.15444869,90535.0,90534.0,0.110455]
[1731776624634,0.00599166,90535.0,90534.0,0.110455]
[1731776624961,0.14845703,90536.0,90531.0,0.220918]
[1731776624962,0.10496874,90536.0,90533.0,0.220913]
[1731776625184,0.09897427,90537.0,90536.0,0.110453]
[1731776625350,0.10496874,90537.0,90536.0,0.110453]
[1731776625564,0.09897427,90537.0,90536.0,0.110453]
[1731776625996,0.10496874,90537.0,90536.0,0.110453]
[1731776626673,0.00599447,90537.0,90536.0,0.110453]
[1731776627096,0.10496874,90537.0,90536.0,0.110453]
[1731776627329,0.02796874,90539.0,90538.0,0.11045]
[1731776627567,0.0017144,90540.0,90536.0,0.220904]
[1731776627763,0.0017144,90540.0,90539.0,0.110449]
[1731776630423,0.0017144,90540.0,90539.0,0.12148862]
[1731776631782,0.0017144,90540.0,90539.0,0.11648862]
[1731776631995,0.0017144,90540.0,90539.0,0.11869736]
[1731776634081,0.0017144,90540.0,90539.0,0.23275991]
[1731776634305,0.0017144,90540.0,90539.0,0.23555117]
[1731776636343,0.0017144,90540.0,90539.0,0.22451155]
[1731776639210,0.0017144,90540.0,90539.0,0.23555003]
[1731776639413,0.0017144,90540.0,90539.0,0.23775857]
[1731776640073,0.0017144,90540.0,90539.0,0.23975857]
[1731776641485,0.0017138,90557.0,90556.0,0.115428]
[1731776642156,0.09198615,90569.0,90568.0,0.110414]
[1731776642557,0.0029878,90570.0,90569.0,0.110413]
[1731776645654,0.0029878,90570.0,90569.0,0.11262098]
[1731776646135,0.0029878,90570.0,90569.0,0.12365613]
[1731776646347,0.0029878,90570.0,90569.0,0.23168353]
[1731776646794,0.0029878,90570.0,90569.0,0.27601582]
[1731776648314,0.0029878,90570.0,90569.0,0.27801582]
[1731776649619,0.0047012,90570.0,90569.0,0.27801582]
[1731776650497,2e-07,90570.0,90569.0,0.27801582]
[1731776650749,2e-07,90570.0,90569.0,0.30101582]
[1731776650990,2e-07,90570.0,90569.0,0.29880784]
[1731776651870,2e-07,90570.0,90569.0,0.27580784]
[1731776652134,2e-07,90570.0,90569.0,0.27801551]
[1731776652505,0.14535915,90583.0,90582.0,0.012]
[1731776652711,0.14535915,90583.0,90582.0,0.35768751]
[1731776653127,0.0017148,90584.0,90583.0,0.122395]
[1731776653361,0.0017148,90584.0,90583.0,0.23366499]
[1731776653590,8e-07,90584.0,90583.0,0.23366491]
[1731776654337,8e-07,90584.0,90583.0,0.25666491]
[1731776656204,8e-07,90584.0,90583.0,0.30178556]
[1731776656448,8e-07,90584.0,90583.0,0.2765782]
[1731776656689,8e-07,90584.0,90583.0,0.2745782]
[1731776657213,0.16555835,90594.0,90593.0,0.115383]
[1731776657214,0.08855915,90594.0,90593.0,0.115383]
[1731776657712,0.16555835,90605.0,90600.0,0.110374]
[1731776657985,0.16555835,90605.0,90590.0,0.005]
[1731776658194,0.16555835,90605.0,90536.0,0.09976238]
[1731776658195,0.12622796,90607.0,90594.0,0.220765]
[1731776658440,0.12622796,90607.0,90606.0,0.110367]
[1731776658683,0.12622796,90607.0,90604.0,0.22074]
[1731776658684,0.16555835,90614.0,90607.0,0.110366]
[1731776659371,0.04548814,90615.0,90607.0,0.110366]
[1731776660294,0.0059279,90626.0,90607.0,0.110366]
[1731776660772,0.04419361,90622.0,90607.0,0.110366]
[1731776664020,0.110351,90620.0,90607.0,0.110366]
[1731776664239,0.12622796,90621.0,90607.0,0.110366]
[1731776665519,0.18744113,90627.0,90607.0,0.110366]
[1731776665735,0.18744113,90627.0,90607.0,0.22163571]
[1731776665969,0.18744113,90627.0,90607.0,0.21942855]
[1731776666185,0.16555835,90627.0,90607.0,0.22942855]
[1731776667479,0.16555835,90617.0,90607.0,0.22942855]
[1731776667911,0.16555835,90617.0,90607.0,0.27411429]
[1731776668597,0.16555835,90617.0,90607.0,0.110366]
[1731776668795,0.16555835,90617.0,90607.0,0.115366]
[1731776670221,0.16555835,90617.0,90607.0,0.110366]
[1731776670443,0.16555835,90617.0,90607.0,0.115366]
[1731776671204,0.16555835,90617.0,90607.0,0.110366]
[1731776671848,0.16555835,90617.0,90607.0,0.115366]
[1731776672161,0.16555835,90617.0,90616.0,0.110355]
[1731776672162,0.09370135,90617.0,90616.0,0.110355]
[1731776672595,0.09370135,90617.0,90610.0,0.441452]
[1731776672596,0.00594394,90626.0,90622.0,0.110348]
[1731776672967,0.00594394,90626.0,90610.0,0.220726]
[1731776673207,0.00594394,90626.0,90621.0,0.110349]
[1731776673418,0.00594394,90625.0,90609.0,0.005]
[1731776673623,0.12622796,90627.0,90609.0,0.005]
[1731776673624,0.00594394,90626.0,90612.0,0.005]
[1731776673832,0.0017144,90629.0,90614.0,0.220716]
[1731776673833,0.00595182,90625.0,90614.0,0.220716]
[1731776674058,0.17151017,90628.0,90627.0,0.110342]
[1731776674286,0.16555835,90628.0,90627.0,0.110342]
[1731776674521,0.00595184,90628.0,90627.0,0.110342]
[1731776677428,0.00595184,90628.0,90625.0,0.220687]
[1731776677429,0.00595184,90628.0,90625.0,0.110343]
[1731776677640,0.0017144,90629.0,90625.0,0.110343]
[1731776677846,0.0017144,90629.0,90623.0,0.220693]
[1731776678067,0.01550234,90628.0,90614.0,0.005]
[1731776678266,0.01550234,90627.0,90615.0,0.220714]
[1731776678468,0.01550908,90626.0,90614.0,0.11406255]
[1731776678676,0.01550908,90625.0,90624.0,0.110346]
[1731776681119,0.01551404,90625.0,90617.0,0.441418]
[1731776681368,0.00596694,90625.0,90624.0,0.110346]
[1731776681576,0.0017144,90629.0,90628.0,0.110341]
[1731776681750,0.01722931,90629.0,90628.0,0.110341]
[1731776682790,0.00768167,90629.0,90628.0,0.110341]
[1731776683995,0.01722934,90629.0,90628.0,0.110341]
[1731776684233,0.00768167,90629.0,90628.0,0.110341]
[1731776684948,0.00768075,90629.0,90628.0,0.110341]
[1731776686153,0.0017144,90629.0,90628.0,0.110341]
[1731776686429,0.00767981,90629.0,90628.0,0.110341]
[1731776686659,0.0017144,90629.0,90628.0,0.110341]
[1731776687381,0.11355824,90644.0,90643.0,0.110322]
[1731776687590,0.11952147,90644.0,90643.0,0.110322]
[1731776687825,0.00596323,90644.0,90643.0,0.110322]
[1731776688317,0.00596324,90644.0,90643.0,0.110322]
[1731776691801,0.0017134,90648.0,90645.0,0.11032]
[1731776692257,0.00596194,90647.0,90643.0,0.220645]
[1731776692483,0.00596194,90646.0,90643.0,0.220645]
[1731776692740,0.00596194,90645.0,90644.0,0.110321]
[1731776697886,0.00681764,90645.0,90644.0,0.110321]
[1731776698838,0.0008557,90645.0,90644.0,0.110321]
[1731776699054,0.00681647,90645.0,90644.0,0.110321]
[1731776699305,0.0008557,90645.0,90644.0,0.110321]
[1731776699797,0.0008557,90645.0,90644.0,0.21938355]
[1731776701588,0.0008557,90645.0,90644.0,0.22158963]
[1731776702342,0.14412745,90659.0,90658.0,0.110304]
[1731776702770,0.0017134,90661.0,90660.0,0.110302]
[1731776703648,0.0017134,90661.0,90657.0,0.220611]
[1731776703869,0.0017134,90661.0,90660.0,0.110302]
[1731776705915,0.0017134,90661.0,90660.0,0.2262551]
[1731776706340,0.0017134,90661.0,90660.0,0.00689055]
[1731776706584,0.0017134,90661.0,90660.0,0.11719255]
[1731776706829,0.0017134,90661.0,90660.0,0.110302]
[1731776707249,0.0017134,90661.0,90660.0,0.11719278]
[1731776707704,0.0017134,90661.0,90660.0,0.110302]
[1731776708876,0.0017134,90661.0,90660.0,0.11250792]
[1731776709114,0.0017134,90661.0,90660.0,0.21936455]
[1731776710025,0.0017134,90661.0,90660.0,0.2262556]
[1731776710448,0.0017134,90661.0,90660.0,0.23346126]
[1731776710694,0.0017134,90661.0,90660.0,0.24448602]
[1731776711151,0.0017134,90661.0,90660.0,0.23846107]
[1731776711592,0.0017134,90661.0,90660.0,0.28277412]
[1731776712016,0.0017134,90661.0,90660.0,0.29379499]
[1731776712274,0.0017134,90661.0,90660.0,0.29158952]
[1731776712503,0.0017134,90661.0,90660.0,0.29358952]
[1731776712983,0.0017134,90661.0,90660.0,0.29158952]
[1731776713614,0.0017134,90661.0,90660.0,0.2736776]
[1731776713846,0.0017134,90661.0,90660.0,0.28690551]
[1731776714099,0.0017134,90661.0,90660.0,0.28690543]
[1731776714309,0.0017134,90661.0,90660.0,0.28690539]
[1731776714580,0.0017134,90661.0,90660.0,0.28890539]
[1731776715674,0.0017134,90661.0,90660.0,0.28690539]
[1731776717143,0.09112845,90676.0,90675.0,0.115283]
[1731776717402,0.09112845,90676.0,90675.0,0.23536806]
[1731776717637,0.0008567,90685.0,90684.0,0.110273]
[1731776720165,0.0008567,90685.0,90671.0,0.441154]
[1731776720399,0.0008567,90685.0,90663.0,0.38615235]
[1731776720400,0.12622796,90681.0,90673.0,0.16555835]
[1731776720629,0.12622796,90681.0,90668.0,0.110291]
[1731776721127,0.110286,90673.0,90663.0,0.16555835]
[1731776721346,0.12622796,90674.0,90649.0,0.005]
[1731776721574,0.12622796,90674.0,90654.0,0.10906255]
[1731776721801,0.12622796,90674.0,90667.0,0.110292]
[1731776722020,0.16555835,90673.0,90665.0,0.110295]
[1731776722277,0.12622796,90674.0,90654.0,0.32968055]
[1731776722497,0.26439666,90681.0,90663.0,0.16555835]
[1731776722711,0.110281,90677.0,90669.0,0.11029]
[1731776722926,0.220558,90679.0,90654.0,0.10906255]
[1731776723140,0.12622796,90680.0,90672.0,0.110287]
[1731776723569,0.12622796,90680.0,90663.0,0.110297]
[1731776723784,0.110288,90672.0,90665.0,0.110295]
[1731776724012,0.220558,90679.0,90663.0,0.16555835]
[1731776724262,0.220558,90679.0,90669.0,0.11029]
[1731776724481,0.220558,90679.0,90663.0,0.16555835]
[1731776724747,0.17164889,90680.0,90668.0,0.110291]
[1731776724955,0.110283,90676.0,90664.0,0.110297]
[1731776725164,0.220563,90677.0,90663.0,0.16555835]
[1731776725378,0.17164889,90680.0,90663.0,0.16555835]
[1731776725379,0.110292,90669.0,90663.0,0.16555835]
[1731776725616,0.12622796,90666.0,90646.0,0.005]
[1731776725839,0.23652296,90666.0,90658.0,0.110304]
[1731776726064,0.220565,90677.0,90653.0,0.38617735]
[1731776726065,0.22057,90674.0,90653.0,0.38617735]
[1731776726273,0.110288,90671.0,90662.0,0.110299]
[1731776726486,0.110288,90671.0,90663.0,0.110297]
[1731776726936,0.110287,90672.0,90664.0,0.110296]
[1731776727175,0.11029,90670.0,90662.0,0.110299]
[1731776727392,0.220572,90673.0,90662.0,0.110299]
[1731776727808,0.22057,90674.0,90658.0,0.220607]
[1731776728040,0.110289,90671.0,90663.0,0.110298]
[1731776728252,0.11029,90670.0,90663.0,0.110298]
[1731776729876,0.110316,90649.0,90641.0,0.16555835]
[1731776730085,0.11032,90645.0,90641.0,0.16555835]
[1731776730775,0.11032,90645.0,90625.0,0.220687]
[1731776730983,0.11032,90645.0,90632.0,0.110335]
[1731776731203,0.11032,90645.0,90633.0,0.110334]
[1731776731661,0.11032,90645.0,90637.0,0.110329]
[1731776731878,0.23654796,90645.0,90629.0,0.220677]
[1731776732097,0.12622796,90645.0,90639.0,0.110327]
[1731776732387,0.02230321,90649.0,90648.0,0.110316]
[1731776732801,0.02230321,90649.0,90642.0,0.220645]
[1731776732802,0.45093617,90659.0,90647.0,0.220636]
[1731776733013,0.45093617,90659.0,90653.0,0.110309]
[1731776733226,0.45093617,90659.0,90652.0,0.220622]
[1731776733692,0.45093617,90659.0,90656.0,0.110306]
[1731776734117,0.45093617,90659.0,90652.0,0.220622]
[1731776734334,0.45093617,90659.0,90643.0,0.16726975]
[1731776734335,0.45093617,90659.0,90655.0,0.110307]
[1731776734775,0.45093617,90659.0,90643.0,0.16726975]
[1731776734776,0.110306,90657.0,90643.0,0.16726975]
[1731776734998,0.220606,90660.0,90653.0,0.11031]
[1731776734999,0.110302,90660.0,90653.0,0.11031]
[1731776735220,0.12622796,90661.0,90648.0,0.330949]
[1731776735450,0.12622796,90661.0,90653.0,0.110309]
[1731776735930,0.12622796,90661.0,90649.0,0.220631]
[1731776736170,0.110302,90660.0,90652.0,0.110311]
[1731776736401,0.11032,90645.0,90643.0,0.0017114]
[1731776736616,0.23654796,90645.0,90643.0,0.0017114]
[1731776736844,0.12622796,90645.0,90643.0,0.0017114]
[1731776737271,0.12622796,90645.0,90644.0,0.112032]
[1731776737518,0.12622796,90645.0,90644.0,0.001711]
[1731776738571,0.23654796,90645.0,90644.0,0.001711]
[1731776739249,0.12622796,90645.0,90644.0,0.001711]
[1731776741080,0.23654796,90645.0,90644.0,0.001711]
[1731776743139,0.34561051,90645.0,90644.0,0.001711]
[1731776747146,0.26861051,90645.0,90644.0,0.001711]
[1731776747595,0.04922796,90645.0,90644.0,0.001711]
[1731776747859,0.26861051,90645.0,90644.0,0.001711]
[1731776751565,0.21044123,90653.0,90644.0,0.001711]
[1731776751566,0.04488288,90653.0,90644.0,0.001711]
[1731776751789,0.15394543,90653.0,90644.0,0.112032]
[1731776752016,0.110313,90651.0,90644.0,0.112032]
[1731776752240,0.2746209,90653.0,90644.0,0.001711]
[1731776752241,0.11032,90645.0,90644.0,0.001711]
[1731776752468,0.21938255,90645.0,90644.0,0.001711]
[1731776754591,0.12622796,90647.0,90644.0,0.001711]
[1731776755045,0.11032,90645.0,90644.0,0.001711]
[1731776755492,0.12622796,90647.0,90644.0,0.001711]
[1731776755718,0.11032,90645.0,90644.0,0.001711]
[1731776755947,0.17210987,90654.0,90644.0,0.001711]
[1731776756406,0.02182099,90658.0,90644.0,0.001711]
[1731776756407,0.02182099,90658.0,90656.0,0.110306]
[1731776756659,0.22478165,90661.0,90644.0,0.001711]
[1731776756660,0.12622796,90661.0,90654.0,0.220617]
[1731776756889,0.23652896,90661.0,90656.0,0.110306]
[1731776757376,0.23652896,90661.0,90651.0,0.220625]
[1731776757377,0.220604,90660.0,90651.0,0.220625]
[1731776757597,0.12622796,90654.0,90646.0,0.220638]
[1731776758250,0.12622796,90654.0,90650.0,0.110313]